{"text_format":"1","workbook":"xlsx","n_sheets":2,"sheets":["Лист1","Лист2"],"not_rendered":{"charts":0,"images":0,"macros":1,"external_links":0,"defined_names":0,"comments":0,"pivot_tables":0},"unopened":[],"bounds":{"document_bytes":16777216,"sheet_cells":100000,"rows_first":2000,"rows_last":500,"rows_between":2000,"halvings":0,"cell_chars":16384,"cell_head_chars":4096},"cells_cut":0,"cells_raw":0,"read":"whole","date_system":"1900"}

{"sheet":"Лист1","index":0,"n_rows":21,"n_cols":9,"rows_kept":21,"cut":false,"hidden":false,"merged":[]}
[]
[null,"СМЕТА"]
[]
["Наименование работ","Помещения","Кол-во","Ед.изм.","Цена за ед работы","Цена за ед мат-ла","Работа","Материал","Всего, руб."]
["Этап №1"]
["Снятие старой краски и шпатлевки с потолка","-",0,"кв.м.",0,0,{"$f":"ROUND(PRODUCT(C6:E6),0)","v":0},{"$f":"ROUND(PRODUCT(C6,F6),0)","v":0},{"$f":"SUM(G6:H6)","v":0}]
["Снятие старой отделки со стен","-",0,"кв.м.",0,0,0,0,0]
["Снятие обоев со стен","-",0,"кв.м.",0,0,{"$f":"ROUND(PRODUCT(C8:E8),0)","v":0},{"$f":"ROUND(PRODUCT(C8,F8),0)","v":0},{"$f":"SUM(G8:H8)","v":0}]
["Снятие обоев со стен","-",0,"кв.м.",0,0,{"$f":"ROUND(PRODUCT(C9:E9),0)","v":0},{"$f":"ROUND(PRODUCT(C9,F9),0)","v":0},{"$f":"SUM(G9:H9)","v":0}]
["Снятие обоев со стен","-",0,"кв.м.",0,0,0,0,0]
["Снятие обоев со стен","-",0,"кв.м.",0,0,0,0,0]
["Снятие обоев со стен","-",0,"кв.м.",0,0,0,0,0]
["Снятие обоев со стен","-",0,"кв.м.",0,0,{"$f":"ROUND(PRODUCT(C13:E13),0)","v":0},{"$f":"ROUND(PRODUCT(C13,F13),0)","v":0},{"$f":"SUM(G13:H13)","v":0}]
["Итого (этап №1):",null,null,null,null,null,{"$f":"ROUND(SUMPRODUCT(E5:E14,C5:C14),0)","v":0},{"$f":"ROUND(SUMPRODUCT(F5:F14,C5:C14),0)","v":0}]
[]
["Этап №2"]
["Возведение перегородок ","-",0,"кв.м.",0,0,{"$f":"ROUND(PRODUCT(C17:E17),0)","v":0},{"$f":"ROUND(PRODUCT(C17,F17),0)","v":0},{"$f":"SUM(G17:H17)","v":0}]
["Устройство дверного проема ",null,0,"компл.",0,0,{"$f":"ROUND(PRODUCT(C18:E18),0)","v":0},{"$f":"ROUND(PRODUCT(C18,F18),0)","v":0},0]
["Расширение дверного проема",null,0,"компл.",0,0,0,0,0]
["Сужение дверного проема",null,0,"компл.",0,0,0,0,0]
["Итого (этап №2):",null,null,null,null,null,{"$f":"ROUND(SUMPRODUCT(E16:E21,C16:C21),0)","v":0},{"$f":"ROUND(SUMPRODUCT(F16:F21,C16:C21),0)","v":0}]

{"sheet":"Лист2","index":1,"n_rows":0,"n_cols":0,"rows_kept":0,"cut":false,"hidden":false,"merged":[]}